bitfinex/quotes_BTCUSD_20250615
["timestamp","ask_amount","ask_price","bid_price","bid_amount"]
[1749957321454,1.48519869,105710.0,105700.0,0.0367]
[1749957321797,1.49184604,105710.0,105700.0,0.0367]
[1749957321999,1.49184608,105710.0,105700.0,0.0367]
[1749957322198,1.49184643,105710.0,105700.0,0.0367]
[1749957322604,1.49184607,105710.0,105700.0,0.0367]
[1749957323009,1.49184605,105710.0,105700.0,0.0367]
[1749957323210,1.48519869,105710.0,105700.0,0.0367]
[1749957323411,1.49184605,105710.0,105700.0,0.0367]
[1749957323950,1.49184606,105710.0,105700.0,0.0367]
[1749957324562,1.49184605,105710.0,105700.0,0.0367]
[1749957324985,1.48519869,105710.0,105700.0,0.0367]
[1749957325197,1.49184606,105710.0,105700.0,0.0367]
[1749957325403,1.48519869,105710.0,105700.0,0.0367]
[1749957325802,1.49184607,105710.0,105700.0,0.0367]
[1749957326002,1.48519869,105710.0,105700.0,0.0367]
[1749957326173,1.49184605,105710.0,105700.0,0.0367]
[1749957326382,1.49184642,105710.0,105700.0,0.0367]
[1749957327797,1.49184605,105710.0,105700.0,0.0367]
[1749957327996,1.48519869,105710.0,105700.0,0.0367]
[1749957328385,1.49184599,105710.0,105700.0,0.0367]
[1749957328628,1.48519869,105710.0,105700.0,0.0367]
[1749957329018,1.49184599,105710.0,105700.0,0.0367]
[1749957329460,1.49184598,105710.0,105700.0,0.0367]
[1749957329876,1.49184632,105710.0,105700.0,0.0367]
[1749957330100,1.49184598,105710.0,105700.0,0.0367]
[1749957330328,1.491846,105710.0,105700.0,0.0367]
[1749957330538,1.49184601,105710.0,105700.0,0.0367]
[1749957330840,1.49184633,105710.0,105700.0,0.0367]
[1749957330967,1.49184606,105710.0,105700.0,0.0367]
[1749957331427,1.4984937,105710.0,105700.0,0.0367]
[1749957331642,1.49184606,105710.0,105700.0,0.0367]
[1749957331858,1.49849378,105710.0,105700.0,0.0367]
[1749957332713,1.49849372,105710.0,105700.0,0.0367]
[1749957333512,1.49849373,105710.0,105700.0,0.0367]
[1749957333851,1.49184606,105710.0,105700.0,0.0367]
[1749957334536,1.49849377,105710.0,105700.0,0.0367]
[1749957334761,1.49849335,105710.0,105700.0,0.0367]
[1749957335019,1.50514032,105710.0,105700.0,0.0367]
[1749957335304,1.50514031,105710.0,105700.0,0.0367]
[1749957335520,1.49849319,105710.0,105700.0,0.0367]
[1749957335944,1.50514046,105710.0,105700.0,0.0367]
[1749957336357,1.50514047,105710.0,105700.0,0.0367]
[1749957336559,1.50514033,105710.0,105700.0,0.0367]
[1749957336771,1.50514021,105710.0,105700.0,0.0367]
[1749957337194,1.50514032,105710.0,105700.0,0.0367]
[1749957337409,1.50514026,105710.0,105700.0,0.0367]
[1749957337673,1.50514017,105710.0,105700.0,0.0367]
[1749957337881,1.06166487,105710.0,105700.0,0.0367]
[1749957338094,1.50514028,105710.0,105700.0,0.0367]
[1749957338297,1.50514027,105710.0,105700.0,0.0367]
[1749957338905,1.49849319,105710.0,105700.0,0.0367]
[1749957339132,1.50514017,105710.0,105700.0,0.0367]
[1749957339338,1.50514014,105710.0,105700.0,0.0367]
[1749957339540,1.50514013,105710.0,105700.0,0.0367]
[1749957339742,1.49849319,105710.0,105700.0,0.0367]
[1749957339946,1.50514027,105710.0,105700.0,0.0367]
[1749957340555,1.50514026,105710.0,105700.0,0.0367]
[1749957340766,1.50514014,105710.0,105700.0,0.0367]
[1749957340984,1.49849319,105710.0,105700.0,0.0367]
[1749957341223,1.50514025,105710.0,105700.0,0.0367]
[1749957341463,1.49849319,105710.0,105700.0,0.0367]
[1749957341703,1.50514025,105710.0,105700.0,0.0367]
[1749957341905,1.50514014,105710.0,105700.0,0.0367]
[1749957342192,1.50514025,105710.0,105700.0,0.0367]
[1749957342440,1.49849319,105710.0,105700.0,0.0367]
[1749957342683,1.50514025,105710.0,105700.0,0.0367]
[1749957343005,1.50514014,105710.0,105700.0,0.0367]
[1749957343251,1.50514025,105710.0,105700.0,0.0367]
[1749957343473,1.49849319,105710.0,105700.0,0.0367]
[1749957343688,1.50514025,105710.0,105700.0,0.0367]
[1749957344140,1.49849319,105710.0,105700.0,0.0367]
[1749957344371,1.50514025,105710.0,105700.0,0.0367]
[1749957344867,1.49849319,105710.0,105700.0,0.0367]
[1749957345159,1.50514025,105710.0,105700.0,0.0367]
[1749957345378,1.50514028,105710.0,105700.0,0.0367]
[1749957345613,1.49849319,105710.0,105700.0,0.0367]
[1749957346094,1.50513938,105710.0,105700.0,0.0367]
[1749957346783,1.49849319,105710.0,105700.0,0.0367]
[1749957346992,1.50513928,105710.0,105700.0,0.0367]
[1749957347236,1.50513938,105710.0,105700.0,0.0367]
[1749957347483,1.50513927,105710.0,105700.0,0.0367]
[1749957347999,1.50513938,105710.0,105700.0,0.0367]
[1749957348254,1.50513937,105710.0,105700.0,0.0367]
[1749957348495,1.50513927,105710.0,105700.0,0.0367]
[1749957349230,1.49849319,105710.0,105700.0,0.0367]
[1749957349462,1.50513938,105710.0,105700.0,0.0367]
[1749957350406,1.5051392,105710.0,105700.0,0.0367]
[1749957350634,1.5051391,105710.0,105700.0,0.0367]
[1749957350883,1.50513907,105710.0,105700.0,0.0367]
[1749957351355,1.50513919,105710.0,105700.0,0.0367]
[1749957351762,1.50513921,105710.0,105700.0,0.0367]
[1749957352307,1.50513922,105710.0,105700.0,0.0367]
[1749957352551,1.49849319,105710.0,105700.0,0.0367]
[1749957352777,1.50538614,105710.0,105700.0,0.0367]
[1749957353418,1.49874022,105710.0,105700.0,0.0367]
[1749957353623,1.50538615,105710.0,105700.0,0.0367]
[1749957353832,1.49874022,105710.0,105700.0,0.0367]
[1749957354043,1.50538651,105710.0,105700.0,0.0367]
[1749957354241,1.50538671,105710.0,105700.0,0.0367]
[1749957355106,1.50538675,105710.0,105700.0,0.0367]
[1749957355295,1.49874022,105710.0,105700.0,0.0367]
[1749957355499,1.50538676,105710.0,105700.0,0.0367]
[1749957355700,1.50538677,105710.0,105700.0,0.0367]
[1749957355905,1.49874022,105710.0,105700.0,0.0367]
[1749957356365,1.50538675,105710.0,105700.0,0.0367]
[1749957356895,1.50538672,105710.0,105700.0,0.0367]
[1749957357047,1.49874022,105710.0,105700.0,0.0367]
[1749957357248,1.50538675,105710.0,105700.0,0.0367]
[1749957358141,1.49874022,105710.0,105700.0,0.0367]
[1749957358337,1.50538671,105710.0,105700.0,0.0367]
[1749957358544,1.50538676,105710.0,105700.0,0.0367]
[1749957358687,1.50538672,105710.0,105700.0,0.0367]
[1749957358891,1.50538669,105710.0,105700.0,0.0367]
[1749957359157,1.50538673,105710.0,105700.0,0.0367]
[1749957359360,1.50538671,105710.0,105700.0,0.0367]
[1749957360568,1.5053866,105710.0,105700.0,0.0367]
[1749957360799,1.49874022,105710.0,105700.0,0.0367]
[1749957361402,1.50538656,105710.0,105700.0,0.0367]
[1749957361622,1.49874022,105710.0,105700.0,0.0367]
[1749957361836,1.49874022,105710.0,105700.0,0.0214]
[1749957362258,1.50538661,105710.0,105700.0,0.0214]
[1749957362910,1.49874022,105710.0,105700.0,0.0214]
[1749957363138,1.50538701,105710.0,105700.0,0.0214]
[1749957363342,1.50538667,105710.0,105700.0,0.0214]
[1749957363552,1.50538654,105710.0,105700.0,0.0214]
[1749957364567,1.50538655,105710.0,105700.0,0.0214]
[1749957364779,1.50538654,105710.0,105700.0,0.0214]
[1749957364984,1.50538655,105710.0,105700.0,0.0214]
[1749957365131,1.50538666,105710.0,105700.0,0.0214]
[1749957365334,1.50538655,105710.0,105700.0,0.0214]
[1749957366323,1.06166411,105710.0,105700.0,0.0214]
[1749957366537,1.50538655,105710.0,105700.0,0.0214]
[1749957366759,1.5053867,105710.0,105700.0,0.0214]
[1749957366948,1.49874022,105710.0,105700.0,0.0214]
[1749957367393,1.50538654,105710.0,105700.0,0.0214]
[1749957367604,1.50538655,105710.0,105700.0,0.0214]
[1749957368032,1.49874022,105710.0,105700.0,0.0214]
[1749957368249,1.50422573,105710.0,105700.0,0.0214]
[1749957368449,1.50422588,105710.0,105700.0,0.0214]
[1749957368655,1.4975794,105710.0,105700.0,0.0214]
[1749957368890,1.50422587,105710.0,105700.0,0.0214]
[1749957369531,1.50422485,105710.0,105700.0,0.0214]
[1749957369938,1.50422485,105710.0,105700.0,0.029082]
[1749957370145,1.50422484,105710.0,105700.0,0.0377]
[1749957370344,1.50422485,105710.0,105700.0,0.0377]
[1749957370837,1.50422484,105710.0,105700.0,0.0377]
[1749957371015,1.4975794,105710.0,105700.0,0.0377]
[1749957371155,1.50422496,105710.0,105700.0,0.0377]
[1749957371359,1.50422484,105710.0,105700.0,0.0377]
[1749957372029,1.50422498,105710.0,105700.0,0.0377]
[1749957372199,1.4975794,105710.0,105700.0,0.0377]
[1749957372413,1.50422484,105710.0,105700.0,0.0377]
[1749957372862,1.4975794,105710.0,105700.0,0.0377]
[1749957373080,1.50422498,105710.0,105700.0,0.0377]
[1749957373284,1.50422484,105710.0,105700.0,0.0377]
[1749957373687,1.50422498,105710.0,105700.0,0.0377]
[1749957373926,1.50422485,105710.0,105700.0,0.0377]
[1749957374407,1.4975794,105710.0,105700.0,0.0377]
[1749957374627,1.50422484,105710.0,105700.0,0.0377]
[1749957375245,1.4975794,105710.0,105700.0,0.0377]
[1749957375450,1.50422498,105710.0,105700.0,0.0377]
[1749957375926,1.50422485,105710.0,105700.0,0.0377]
[1749957376147,1.50422426,105710.0,105700.0,0.0377]
[1749957376370,1.50422439,105710.0,105700.0,0.0214]
[1749957376581,1.50422446,105710.0,105700.0,0.0214]
[1749957376812,1.50422454,105710.0,105700.0,0.0214]
[1749957377987,1.4975794,105710.0,105700.0,0.0214]
[1749957378212,1.50422443,105710.0,105700.0,0.0214]
[1749957378420,1.50422453,105710.0,105700.0,0.0214]
[1749957378832,1.50422446,105710.0,105700.0,0.0214]
[1749957379038,1.4975794,105710.0,105700.0,0.0214]
[1749957379239,1.50422446,105710.0,105700.0,0.0214]
[1749957379446,1.4975794,105710.0,105700.0,0.0214]
[1749957379650,1.50422453,105710.0,105700.0,0.0214]
[1749957380065,1.4975794,105710.0,105700.0,0.0214]
[1749957380272,1.50422453,105710.0,105700.0,0.0214]
[1749957380686,1.50422453,105710.0,105700.0,0.0369]
[1749957381307,1.50422446,105710.0,105700.0,0.0369]
[1749957381714,1.50422453,105710.0,105700.0,0.0369]
[1749957382126,1.50422446,105710.0,105700.0,0.0369]
[1749957382342,1.50422454,105710.0,105700.0,0.0369]
[1749957382519,1.50422449,105710.0,105700.0,0.0369]
[1749957382723,1.4975794,105710.0,105700.0,0.0369]
[1749957382929,1.50422449,105710.0,105700.0,0.0369]
[1749957383441,1.4975794,105710.0,105700.0,0.0369]
[1749957383647,1.5042244,105710.0,105700.0,0.0369]
[1749957383852,1.4975794,105710.0,105700.0,0.0369]
[1749957384055,1.50422474,105710.0,105700.0,0.0369]
[1749957384279,1.4975794,105710.0,105700.0,0.0369]
[1749957384697,1.50422479,105710.0,105700.0,0.0369]
[1749957384902,1.4975794,105710.0,105700.0,0.0369]
[1749957385102,1.5042249,105710.0,105700.0,0.0369]
[1749957385318,1.50422479,105710.0,105700.0,0.0369]
[1749957385725,1.4975794,105710.0,105700.0,0.0369]
[1749957385952,1.50422479,105710.0,105700.0,0.0369]
[1749957386157,1.50422493,105710.0,105700.0,0.0369]
[1749957386361,1.4975794,105710.0,105700.0,0.0369]
[1749957386563,1.50422496,105710.0,105700.0,0.0369]
[1749957386737,1.50422482,105710.0,105700.0,0.0369]
[1749957386944,1.4975794,105710.0,105700.0,0.0369]
[1749957387151,1.50422494,105710.0,105700.0,0.0369]
[1749957387882,1.4975794,105710.0,105700.0,0.0369]
[1749957388361,1.50422489,105710.0,105700.0,0.0369]
[1749957388791,1.50422493,105710.0,105700.0,0.0369]
[1749957389231,1.50422492,105710.0,105700.0,0.0369]
[1749957389449,1.50422479,105710.0,105700.0,0.0369]
[1749957389693,1.50422645,105710.0,105700.0,0.0369]
[1749957389913,1.4975794,105710.0,105700.0,0.0369]
[1749957390134,1.50422645,105710.0,105700.0,0.0369]
[1749957390350,1.50422646,105710.0,105700.0,0.0369]
[1749957390563,1.4975794,105710.0,105700.0,0.0369]
[1749957390780,1.5042266,105710.0,105700.0,0.0369]
[1749957391270,1.4975794,105710.0,105700.0,0.0369]
[1749957391503,1.50422646,105710.0,105700.0,0.0369]
[1749957391761,1.4975794,105710.0,105700.0,0.0369]
[1749957392233,1.50422663,105710.0,105700.0,0.0369]
[1749957392667,1.4975794,105710.0,105700.0,0.044482]
[1749957393093,1.50422666,105710.0,105700.0,0.0369]
[1749957393299,1.20133764,105710.0,105700.0,0.0369]
[1749957393499,1.00133764,105710.0,105700.0,0.0369]
[1749957393973,0.38733704,105710.0,105700.0,0.2639566]
[1749957394190,0.01994423,105710.0,105700.0,0.70767904]
[1749957394404,0.02940344,105710.0,105700.0,0.51282582]
[1749957394611,0.03886274,105710.0,105700.0,0.51282582]
[1749957394841,0.02940335,105710.0,105700.0,0.95654826]
[1749957395053,0.03886265,105710.0,105700.0,0.95654826]
[1749957395256,0.03886265,105710.0,105700.0,0.95254826]
[1749957395460,0.03886265,105710.0,105700.0,0.95154826]
[1749957395645,0.04832222,105710.0,105700.0,0.95154826]
[1749957395882,0.04832222,105710.0,105700.0,0.95454826]
[1749957396102,0.04832213,105710.0,105700.0,0.95454826]
[1749957396325,0.05778179,105710.0,105700.0,0.4146766]
[1749957396538,0.05778179,105710.0,105700.0,0.4166766]
[1749957396748,0.04832213,105710.0,105700.0,0.4166766]
[1749957396955,0.0577817,105710.0,105700.0,0.4166766]
[1749957398238,0.0670716,105710.0,105700.0,0.4166766]
[1749957398676,0.07653126,105710.0,105700.0,0.4166766]
[1749957398892,0.06724136,105710.0,105700.0,0.4166766]
[1749957399278,0.5109638,105710.0,105700.0,0.4166766]
[1749957399432,0.50150414,105710.0,105700.0,0.7115766]
[1749957400513,0.5109638,105710.0,105700.0,0.7115766]
[1749957402728,0.52066354,105710.0,105700.0,0.7115766]
[1749957405480,0.5109638,105710.0,105700.0,0.7115766]
[1749957406678,0.5202744,105710.0,105700.0,0.7115766]
[1749957409514,0.5202744,105710.0,105700.0,0.7015766]
[1749957410734,0.5109638,105710.0,105700.0,0.7015766]
[1749957411803,0.52029718,105710.0,105700.0,0.7015766]
[1749957412016,0.52029781,105710.0,105700.0,0.5488566]
[1749957412231,0.52029781,105710.0,105700.0,0.53939649]
[1749957412443,0.70003572,105710.0,105700.0,0.73119658]
[1749957412654,0.70003572,105710.0,105700.0,0.72173612]
[1749957412873,0.75294255,105710.0,105700.0,0.54885713]
[1749957413079,0.70003572,105710.0,105700.0,0.7501175]
[1749957414043,0.69057615,105710.0,105700.0,0.7501175]
[1749957414959,0.69057615,105710.0,105700.0,0.75011706]
[1749957416949,0.69057615,105710.0,105700.0,0.74065677]
[1749957417163,0.68111649,105710.0,105700.0,0.72173576]
[1749957417372,0.68111649,105710.0,105700.0,0.71227539]
[1749957417579,0.68111649,105710.0,105700.0,0.72173585]
[1749957418005,0.67165674,105710.0,105700.0,0.71227539]
[1749957418219,0.67165674,105710.0,105700.0,0.72173585]
[1749957418434,0.67165674,105710.0,105700.0,0.73119622]
[1749957419745,0.67165674,105710.0,105700.0,0.71227539]
[1749957419950,0.67165674,105710.0,105700.0,0.72173594]
[1749957420420,0.6621969,105710.0,105700.0,0.72173594]
[1749957423385,0.65554717,105710.0,105700.0,0.72173594]
[1749957423798,0.65554717,105710.0,105700.0,0.71227539]
[1749957424005,0.65554717,105710.0,105700.0,0.7311964]
[1749957425459,0.65554717,105710.0,105700.0,0.5136]
[1749957425664,0.65554717,105710.0,105700.0,0.5204753]
[1749957425873,0.65554717,105710.0,105700.0,0.7122753]
[1749957427479,0.65554717,105710.0,105700.0,0.7122353]
[1749957427914,0.65554717,105710.0,105700.0,0.3218]
[1749957428115,0.65554717,105710.0,105700.0,0.71223539]
[1749957428525,0.65554717,105710.0,105700.0,0.72169594]
[1749957429581,0.65554717,105710.0,105700.0,0.71223539]
[1749957431135,0.65554717,105710.0,105700.0,0.72165594]
[1749957432786,0.65554717,105710.0,105700.0,0.3218]
[1749957433074,0.65554717,105710.0,105700.0,0.71219539]
[1749957434165,0.65554717,105710.0,105700.0,0.7406134]
[1749957434392,0.65554717,105710.0,105700.0,0.72165594]
[1749957434906,0.65554717,105710.0,105700.0,0.7500682]
[1749957435534,0.65554717,105710.0,105700.0,0.72165594]
[1749957436125,0.65554717,105710.0,105700.0,0.7500682]
[1749957436767,0.65554717,105710.0,105700.0,0.72165594]
[1749957437077,0.65554717,105710.0,105700.0,0.7500682]
[1749957442272,0.65554717,105710.0,105700.0,0.72165594]
[1749957442760,0.65554717,105710.0,105700.0,0.51352]
[1749957442971,0.65554717,105710.0,105700.0,0.52298073]
[1749957443383,0.65554717,105710.0,105700.0,0.71219548]
[1749957445295,0.65554717,105710.0,105700.0,0.72165612]
[1749957445541,0.65554717,105710.0,105700.0,0.75006838]
[1749957446377,0.65554717,105710.0,105700.0,0.74060774]
[1749957446910,0.65554717,105710.0,105700.0,0.35021226]
[1749957447124,0.65554717,105710.0,105700.0,0.55131299]
[1749957447338,0.65554717,105710.0,105700.0,0.72157612]
[1749957447619,0.65554717,105710.0,105700.0,0.74998838]
[1749957449814,0.65554717,105710.0,105700.0,0.75944893]
[1749957452287,0.65554717,105710.0,105700.0,0.76890939]
[1749957452490,0.65554717,105710.0,105700.0,0.75944893]
[1749957452875,0.65554717,105710.0,105700.0,0.76890939]
[1749957453562,0.6488998,105710.0,105700.0,0.76890939]
[1749957454860,0.6488998,105710.0,105700.0,0.76891482]
[1749957458086,0.6488998,105710.0,105700.0,0.77837519]
[1749957463444,0.64225267,105710.0,105700.0,0.77837519]
[1749957466724,0.65171242,105710.0,105700.0,0.77837519]
[1749957471715,0.65171242,105710.0,105700.0,0.77837475]
[1749957472732,0.6611719,105710.0,105700.0,0.77837475]
[1749957472966,0.6611719,105710.0,105700.0,0.76891411]
[1749957479729,0.6611719,105710.0,105700.0,0.74999345]
[1749957480269,0.21744946,105710.0,105700.0,0.75945374]
[1749957480494,0.6611719,105710.0,105700.0,0.75945374]
[1749957482212,0.6611719,105710.0,105700.0,0.76891394]
[1749957482630,0.47197505,105710.0,105700.0,0.76891394]
[1749957482846,0.48143489,105710.0,105700.0,0.76891394]
[1749957483055,0.67063174,105710.0,105700.0,0.75945374]
[1749957483265,0.48143489,105710.0,105700.0,0.76891394]
[1749957483682,0.01891869,105710.0,105700.0,0.76891394]
[1749957483901,0.48156054,105710.0,105700.0,0.77837405]
[1749957485163,0.46264113,105710.0,105700.0,0.77837405]
[1749957485371,0.47210079,105710.0,105700.0,0.77837405]
[1749957485578,0.46264113,105710.0,105700.0,0.77837405]
[1749957485781,0.47210079,105710.0,105700.0,0.77837405]
[1749957486416,0.01891869,105710.0,105700.0,0.77837405]
[1749957486623,0.46264113,105710.0,105700.0,0.77837405]
[1749957486833,0.4721007,105710.0,105700.0,0.77837405]
[1749957487249,0.46264113,105710.0,105700.0,0.77837405]
[1749957487657,0.45318165,105710.0,105700.0,0.77837405]
[1749957487868,0.00945921,105710.0,105700.0,0.77837405]
[1749957488091,0.46264113,105710.0,105700.0,0.77837405]
[1749957488534,0.46264104,105710.0,105700.0,0.77837405]
[1749957492374,0.46264104,105710.0,105700.0,0.79821384]
[1749957493322,0.46264104,105710.0,105700.0,0.77837405]
[1749957495169,0.0189186,105710.0,105700.0,0.77837405]
[1749957495375,0.46264104,105710.0,105700.0,0.77837405]
[1749957496258,0.46264104,105710.0,105700.0,0.58673405]
[1749957496457,0.46264104,105710.0,105700.0,0.77829405]
[1749957497105,0.47210052,105710.0,105700.0,0.77829405]
[1749957498243,0.47210061,105710.0,105700.0,0.77829405]
[1749957501992,0.47210052,105710.0,105700.0,0.77829405]
[1749957503008,0.48156018,105710.0,105700.0,0.77829405]
[1749957503212,0.47210052,105710.0,105700.0,0.77829405]
[1749957504475,0.48156009,105710.0,105700.0,0.77829405]
[1749957505062,0.48156009,105710.0,105700.0,0.77825405]
[1749957505923,0.48156009,105710.0,105700.0,0.58673405]
[1749957506132,0.49101975,105710.0,105700.0,0.77825405]
[1749957509785,0.04729731,105710.0,105700.0,0.77825405]
[1749957509993,0.49101975,105710.0,105700.0,0.77825405]
[1749957510309,0.48156009,105710.0,105700.0,0.77825405]
[1749957516444,0.48156009,105710.0,105700.0,0.74983636]
[1749957517286,0.48156009,105710.0,105700.0,0.77824778]
[1749957519558,0.4814611,105710.0,105700.0,0.77824778]
[1749957520046,0.49092076,105710.0,105700.0,0.77824778]
[1749957524281,0.04729731,105710.0,105700.0,0.77824778]
[1749957524488,0.49092076,105710.0,105700.0,0.77824778]
[1749957528776,0.4909213,105710.0,105700.0,0.58672778]
[1749957528978,0.4909213,105710.0,105700.0,0.77824778]
[1749957529403,0.49092175,105710.0,105700.0,0.54590747]
[1749957529623,0.67065912,105710.0,105700.0,0.73742765]
[1749957529857,0.48146227,105710.0,105700.0,0.74688785]
[1749957530107,0.47200243,105710.0,105700.0,0.75634796]
[1749957530310,0.47200243,105710.0,105700.0,0.74688785]
[1749957531568,0.66119928,105710.0,105700.0,0.74688785]
[1749957531910,0.47200243,105710.0,105700.0,0.75634796]
[1749957532147,0.48146227,105710.0,105700.0,0.75634796]
[1749957532735,0.67065912,105710.0,105700.0,0.74688785]
[1749957533593,0.67065912,105710.0,105700.0,0.73742765]
[1749957536934,0.66119955,105710.0,105700.0,0.73742765]
[1749957538287,0.66119955,105710.0,105700.0,0.72796736]
[1749957538498,0.65173989,105710.0,105700.0,0.7185069]
[1749957538711,0.65173989,105710.0,105700.0,0.72796736]
[1749957540335,0.64228014,105710.0,105700.0,0.72796754]
[1749957540545,0.64228014,105710.0,105700.0,0.73742809]
[1749957540968,0.64228014,105710.0,105700.0,0.74688855]
[1749957542271,0.64228014,105710.0,105700.0,0.52929215]
[1749957542709,0.64228014,105710.0,105700.0,0.72796754]
[1749957543138,0.6328203,105710.0,105700.0,0.49142]
[1749957543370,1.0042203,105710.0,105700.0,0.2999]
[1749957543806,1.01087425,105710.0,105700.0,0.2999]
[1749957544053,1.0042203,105710.0,105700.0,0.4525]
[1749957544273,1.01087375,105710.0,105700.0,0.4525]
[1749957544490,1.01087373,105710.0,105700.0,0.4505]
[1749957544710,1.01087373,105710.0,105700.0,0.4475]
[1749957544930,1.01087409,105710.0,105700.0,0.4475]
[1749957545149,1.01087364,105710.0,105700.0,0.4485]
[1749957545369,1.0042203,105710.0,105700.0,0.4485]
[1749957545580,1.01087364,105710.0,105700.0,0.4485]
[1749957545795,1.010874,105710.0,105700.0,0.4485]
[1749957546003,1.01087401,105710.0,105700.0,0.4495]
[1749957546211,1.01087536,105710.0,105700.0,0.4495]
[1749957546418,1.0042203,105710.0,105700.0,0.4495]
[1749957546622,1.01087573,105710.0,105700.0,0.4495]
[1749957546824,1.0042203,105710.0,105700.0,0.4495]
[1749957547306,1.01087741,105710.0,105700.0,0.4495]
[1749957547528,1.0042203,105710.0,105700.0,0.1546]
[1749957547767,1.01087741,105710.0,105700.0,0.1546]
[1749957548235,1.01087773,105710.0,105700.0,0.1546]
[1749957548715,1.0042203,105710.0,105700.0,0.1546]
[1749957548936,1.01087741,105710.0,105700.0,0.1546]
[1749957549163,1.0042203,105710.0,105700.0,0.1546]
[1749957551678,1.05712713,105710.0,105700.0,0.1546]
[1749957551938,1.0042203,105710.0,105700.0,0.1546]
[1749957552997,0.52919685,105710.0,105700.0,0.1546]
[1749957553220,0.9728203,105710.0,105700.0,0.1859]
[1749957553453,0.52919685,105710.0,105700.0,0.37511475]
[1749957553672,0.54811626,105710.0,105700.0,0.91898147]
[1749957553892,0.99173971,105710.0,105700.0,0.38457539]
[1749957554108,0.98228005,105710.0,105700.0,0.38457539]
[1749957554316,0.9728203,105710.0,105700.0,0.1859]
[1749957554524,0.9728203,105710.0,105700.0,0.20482137]
[1749957554909,0.9728203,105710.0,105700.0,0.39403612]
[1749957558063,0.9728203,105710.0,105700.0,0.38457548]
[1749957559418,0.9728203,105710.0,105700.0,0.49026073]
[1749957560571,0.9728203,105710.0,105700.0,0.4808]
[1749957560806,0.52919685,105710.0,105700.0,0.48854]
[1749957561033,0.9728203,105710.0,105700.0,0.48854]
[1749957574729,0.9728203,105710.0,105700.0,0.50384]
[1749957577068,0.52919685,105710.0,105700.0,0.50384]
[1749957577311,0.9728203,105710.0,105700.0,0.50384]
[1749957580426,0.9728203,105710.0,105700.0,0.51974]
[1749957589843,0.9728203,105710.0,105700.0,0.52920073]
[1749957595470,0.53865606,105710.0,105700.0,0.72787612]
[1749957595718,0.98228014,105710.0,105700.0,0.77233686]
[1749957595927,0.98228014,105710.0,105700.0,0.73733667]
[1749957596808,0.98228014,105710.0,105700.0,0.72787612]
[1749957597511,0.98228014,105710.0,105700.0,0.73733667]
[1749957604595,0.98228014,105710.0,105700.0,0.74679713]
[1749957607768,0.99173989,105710.0,105700.0,0.74679713]
[1749957607948,0.99173989,105710.0,105700.0,0.7562575]
[1749957608166,0.54811644,105710.0,105700.0,0.75625706]
[1749957608301,0.99173989,105710.0,105700.0,0.75625706]
[1749957608726,0.99173989,105710.0,105700.0,0.7373364]
[1749957609150,0.99173989,105710.0,105700.0,0.74679677]
[1749957609759,0.99173989,105710.0,105700.0,0.7373364]
[1749957612992,0.99173989,105710.0,105700.0,0.83348562]
[1749957615984,0.98228014,105710.0,105700.0,0.7373364]
[1749957617389,0.98228014,105710.0,105700.0,0.74679677]
[1749957617611,0.35891887,105710.0,105700.0,0.74679677]
[1749957617831,1.00119883,105710.0,105700.0,0.74679677]
[1749957620157,0.99173953,105710.0,105700.0,0.7373364]
[1749957621034,0.99173953,105710.0,105700.0,0.83348562]
[1749957621754,0.99173953,105710.0,105700.0,0.7373364]
[1749957623101,0.99173953,105710.0,105700.0,0.72787594]
[1749957623518,0.99173953,105710.0,105700.0,0.7373364]
[1749957631316,0.98227996,105710.0,105700.0,0.72787594]
[1749957633774,0.98227996,105710.0,105700.0,0.7373364]
[1749957636757,0.98227996,105710.0,105700.0,0.83348562]
[1749957639810,0.98227996,105710.0,105700.0,0.7373364]
[1749957641430,0.98227996,105710.0,105700.0,0.72775594]
[1749957641638,0.98227996,105710.0,105700.0,0.69655594]
[1749957644757,0.9728203,105710.0,105700.0,0.69655594]
[1749957645177,0.9728203,105710.0,105700.0,0.67763475]
[1749957645388,0.9728203,105710.0,105700.0,0.68709548]
[1749957645815,0.9728203,105710.0,105700.0,0.69655612]
[1749957646473,0.9728203,105710.0,105700.0,0.49557548]
[1749957646685,0.9728203,105710.0,105700.0,0.69655612]
[1749957647362,0.9728203,105710.0,105700.0,0.70601667]
[1749957647983,0.52919685,105710.0,105700.0,0.70601667]
[1749957648185,0.9728203,105710.0,105700.0,0.70601667]
[1749957648445,0.9728203,105710.0,105700.0,0.71547713]
[1749957648644,0.9728203,105710.0,105700.0,0.70601667]
[1749957649368,0.9728203,105710.0,105700.0,0.72211667]
[1749957651550,1.0043203,105710.0,105700.0,0.48842]
[1749957651791,1.0043203,105710.0,105700.0,0.69655612]
[1749957654200,0.9880203,105710.0,105700.0,0.69655612]
[1749957654633,0.9880203,105710.0,105700.0,0.49788073]
[1749957656703,0.9728203,105710.0,105700.0,0.49788073]
[1749957661077,0.9728203,105710.0,105700.0,0.2969]
[1749957661316,0.9728203,105710.0,105700.0,0.48842]
[1749957666380,1.0038203,105710.0,105700.0,0.4495]
[1749957667354,0.9728203,105710.0,105700.0,0.4495]
[1749957671631,0.9728203,105710.0,105700.0,0.1546]
[1749957674292,0.9728203,105710.0,105700.0,0.19352]
[1749957675021,0.97263108,105710.0,105700.0,0.19352]
[1749957681512,0.97263108,105710.0,105700.0,0.1546]
[1749957681725,1.00403108,105710.0,105700.0,0.1546]
[1749957682456,0.98763108,105710.0,105700.0,0.1546]
[1749957683291,0.97263108,105710.0,105700.0,0.1546]
[1749957689190,1.21128617,105710.0,105700.0,0.002]
[1749957689406,1.30087284,105710.0,105700.0,0.002]
[1749957689626,1.36043468,105710.0,105700.0,0.002]
[1749957689849,1.30752795,105710.0,105700.0,0.002]
[1749957690074,1.30752774,105710.0,105700.0,0.002]
[1749957690509,1.30087284,105710.0,105700.0,0.002]
[1749957690943,1.30752781,105710.0,105700.0,0.002]
[1749957691152,1.30752757,105710.0,105700.0,0.002]
[1749957691590,1.30751895,105710.0,105700.0,0.002]
[1749957691815,1.30087284,105710.0,105700.0,0.002]
[1749957692035,1.30751907,105710.0,105700.0,0.002]
[1749957692253,1.3075189,105710.0,105700.0,0.002]
[1749957692701,1.30751904,105710.0,105700.0,0.002]
[1749957692941,1.3075189,105710.0,105700.0,0.002]
[1749957693391,1.30087284,105710.0,105700.0,0.002]
[1749957693603,1.30751805,105710.0,105700.0,0.002]
[1749957693824,1.30087284,105710.0,105700.0,0.002]
[1749957694280,1.30751819,105710.0,105700.0,0.002]
[1749957694510,1.30751805,105710.0,105700.0,0.002]
[1749957694731,1.30087284,105710.0,105700.0,0.002]
[1749957694955,1.30751766,105710.0,105700.0,0.002]
[1749957695177,1.30751767,105710.0,105700.0,0.002]